fUSD/lending_fUSD_20250103
["ID","MTS","AMOUNT","RATE_DAILY","PERIOD"]
[347489595,1735872633115,-9465.87,9.764e-05,2]
[347489596,1735872633125,-500.0,9.764e-05,2]
[347489597,1735872633134,-500.0,9.764e-05,2]
[347489598,1735872633144,-500.0,9.764e-05,2]
[347489599,1735872633153,-500.0,9.764e-05,2]
[347489600,1735872633163,-4872.48,9.764e-05,2]
[347489601,1735872633172,-500.0,9.764e-05,2]
[347489602,1735872633182,-500.0,9.764e-05,2]
[347489603,1735872633192,-500.0,9.764e-05,2]
[347489604,1735872633202,-500.0,9.764e-05,2]
[347489605,1735872633211,-405.90549892,9.764e-05,2]
[347489606,1735872633221,-500.0,9.764e-05,2]
[347489607,1735872633230,-500.0,9.764e-05,2]
[347489608,1735872633239,-8627.6,9.764e-05,2]
[347489609,1735872633248,-793.15,9.764e-05,2]
[347489610,1735872633257,-1609.41,9.764e-05,2]
[347489611,1735872633267,-500.0,9.764e-05,2]
[347489612,1735872633276,-2983.15,9.764e-05,2]
[347489613,1735872633286,-833.95,9.764e-05,2]
[347489614,1735872633295,-953.26,9.764e-05,2]
[347489615,1735872633306,-500.0,9.764e-05,2]
[347489616,1735872633318,-500.0,9.764e-05,2]
[347489617,1735872633327,-847.82,9.764e-05,2]
[347489618,1735872633337,-99.21385047,9.764e-05,2]
[347489623,1735872637864,-500.0,9.763e-05,2]
[347489624,1735872637875,-500.0,9.763e-05,2]
[347489625,1735872637884,-500.0,9.763e-05,2]
[347489626,1735872637894,-925.41614953,9.764e-05,2]
[347489627,1735872637903,-500.0,9.764e-05,2]
[347489628,1735872637912,-1651.83,9.764e-05,2]
[347489629,1735872637923,-500.0,9.764e-05,2]
[347489630,1735872637934,-500.0,9.764e-05,2]
[347489631,1735872637942,-500.0,9.764e-05,2]
[347489632,1735872637951,-500.0,9.764e-05,2]
[347489633,1735872637964,-541.18239641,9.764e-05,2]
[347489634,1735872637976,-3215.02760359,9.764e-05,2]
[347489635,1735872637984,-2607.91789096,9.764e-05,2]
[347489636,1735872638074,-1943.46898318,9.764e-05,2]
[347489643,1735872639975,-1000.0,9.763e-05,2]
[347489644,1735872639986,-27.89,9.763e-05,2]
[347489645,1735872639996,-1033.78407568,9.764e-05,2]
[347489646,1735872640008,-500.0,9.764e-05,2]
[347489647,1735872640224,-360.87153986,9.764e-05,2]
[347489648,1735872640235,-571.33144562,9.764e-05,2]
[347489656,1735872642843,-2404.1760647,9.764e-05,2]
[347489657,1735872642852,-604.25561167,9.764e-05,2]
[347489658,1735872642862,-500.0,9.764e-05,2]
[347489659,1735872642872,-503.67,9.764e-05,2]
[347489660,1735872642882,-4551.14,9.764e-05,2]
[347489661,1735872642891,-500.0,9.764e-05,2]
[347489662,1735872642901,-500.0,9.764e-05,2]
[347489663,1735872642911,-500.0,9.764e-05,2]
[347489664,1735872642920,-500.0,9.764e-05,2]
[347489665,1735872642930,-581.08,9.764e-05,2]
[347489666,1735872642939,-596.74993335,9.764e-05,2]
[347489667,1735872642951,-540.16800001,9.764e-05,2]
[347489668,1735872643064,-262.47,9.764e-05,2]
[347489669,1735872643076,-486.91680003,9.764e-05,2]
[347489670,1735872643088,-1687.17664315,9.764e-05,2]
[347489671,1735872643275,-500.0,9.764e-05,2]
[347489703,1735872645973,-853.52,9.763e-05,2]
[347489705,1735872645983,-2236.4799995,9.764e-05,2]
[347489707,1735872645996,-3173.4500005,9.764e-05,2]
[347489721,1735872646183,-1457.571224,9.764e-05,2]
[347489722,1735872646195,-356.40360852,9.764e-05,2]
[347489723,1735872646206,-807.05547,9.764e-05,2]
[347489729,1735872672804,5532.55266446,9.357e-05,2]
[347489731,1735872819472,178.731,9.28e-05,2]
[347489732,1735872837526,200.0,8.809e-05,2]
[347489737,1735872964657,565.6,8.797e-05,2]
[347489738,1735872969144,206.57,9.345e-05,2]
[347489739,1735872991009,250.0,8.803e-05,2]
[347489740,1735873085223,1825.85,8.219e-05,2]
[347489897,1735873423754,179.165,9.28e-05,2]
[347489898,1735873468656,1000.0,8.785e-05,2]
[347489899,1735873491401,283.88,8.78e-05,2]
[347489900,1735873527246,573.02,8.776e-05,2]
[347489901,1735873558840,184.69,8.776e-05,2]
[347489902,1735873695653,250.0,8.785e-05,2]
[347489903,1735873747337,283903.65312381,9e-05,2]
[347489904,1735873747363,336584.20187619,9e-05,2]
[347489912,1735873832154,-1198.83817132,9.662e-05,2]
[347489913,1735873832166,-3801.16182868,9.662e-05,2]
[347489914,1735873832176,-581.25,9.663e-05,2]
[347489915,1735873832186,-14889.8916,9.663e-05,2]
[347489916,1735873832196,-4981.256,9.664e-05,2]
[347489917,1735873832208,-5630.5159,9.664e-05,2]
[347489918,1735873832221,-1000.0,9.664e-05,2]
[347489919,1735873832231,-3909.235,9.721e-05,2]
[347489920,1735873832240,-4047.849,9.721e-05,2]
[347489921,1735873832249,-150.73,9.721e-05,2]
[347489922,1735873832259,-1106.196,9.721e-05,2]
[347489923,1735873832268,-1153.64,9.728e-05,2]
[347489924,1735873832279,-300.000001,9.75e-05,2]
[347489925,1735873832288,-500.0,9.761e-05,2]
[347489926,1735873832298,-1583.01,9.761e-05,2]
[347489927,1735873832308,-5026.44517614,9.761e-05,2]
[347489928,1735873832319,-389.40734789,9.761e-05,2]
[347489929,1735873832330,-522.80002,9.761e-05,2]
[347489930,1735873832341,-1397.89804856,9.761e-05,2]
[347489931,1735873832353,-781.3299975,9.761e-05,2]
[347489932,1735873832365,-714.10476417,9.761e-05,2]
[347489933,1735873832376,-197.00464574,9.761e-05,2]
[347489934,1735873832385,-725.23901926,9.761e-05,2]
[347489935,1735873832396,-8718.16277065,9.761e-05,2]
[347489936,1735873832479,-495.07637835,9.761e-05,2]
[347489937,1735873832490,-460.74,9.761e-05,2]
[347489938,1735873832501,-631.12382427,9.761e-05,2]
[347489939,1735873832512,-3113.93800747,9.761e-05,2]
[347489940,1735873832521,-500.0,9.761e-05,2]
[347489941,1735873832531,-2841.3,9.761e-05,2]
[347489942,1735873832540,-451.19978266,9.761e-05,2]
[347490052,1735873838035,-1039.40478919,9.761e-05,2]
[347490053,1735873838046,-1274.92466572,9.761e-05,2]
[347490054,1735873838058,-8956.1,9.761e-05,2]
[347490056,1735873838248,-95.21076243,9.761e-05,2]
[347490058,1735873838257,-1354.46261952,9.761e-05,2]
[347490060,1735873838268,-257.59738048,9.761e-05,2]
[347490062,1735873838277,-103.77386984,9.761e-05,2]
[347490064,1735873838289,-396.22613016,9.761e-05,2]
[347490065,1735873838298,-69.17491284,9.761e-05,2]
[347490067,1735873838310,-735.15365519,9.761e-05,2]
[347490069,1735873838321,-846.57143197,9.761e-05,2]
[347490071,1735873838331,-1096.77,9.761e-05,2]
[347490073,1735873838340,-1554.27357163,9.761e-05,2]
[347490231,1735873840068,-673.28091224,9.761e-05,2]
[347490233,1735873840079,-262.520001,9.761e-05,2]
[347490235,1735873840090,-1396.87551513,9.761e-05,2]
[347490237,1735873840099,-500.0,9.761e-05,2]
[347490239,1735873840108,-500.0,9.761e-05,2]
[347490240,1735873840118,-4444.56,9.761e-05,2]
[347490242,1735873840127,-3049.4,9.761e-05,2]
[347490244,1735873840136,-1000.0,9.762e-05,2]
[347490246,1735873840150,-1000.0,9.762e-05,2]
[347490248,1735873840158,-1000.0,9.762e-05,2]
[347490250,1735873840167,-1000.0,9.762e-05,2]
[347490252,1735873840176,-1000.0,9.762e-05,2]
[347490254,1735873840186,-1000.0,9.762e-05,2]
[347490256,1735873840196,-1000.0,9.762e-05,2]
[347490258,1735873840205,-1000.0,9.762e-05,2]
[347490260,1735873840214,-1000.0,9.762e-05,2]
[347490262,1735873840224,-1000.0,9.762e-05,2]
[347490264,1735873840233,-1000.0,9.762e-05,2]
[347490266,1735873840242,-1000.0,9.762e-05,2]
[347490268,1735873840250,-1000.0,9.762e-05,2]
[347490270,1735873840259,-1000.0,9.762e-05,2]
[347490272,1735873840268,-1000.0,9.762e-05,2]
[347490274,1735873840277,-1000.0,9.762e-05,2]
[347490275,1735873840286,-1000.0,9.762e-05,2]
[347490277,1735873840295,-1000.0,9.762e-05,2]
[347490279,1735873840304,-1000.0,9.762e-05,2]
[347490281,1735873840314,-1000.0,9.762e-05,2]
[347490283,1735873840323,-1000.0,9.762e-05,2]
[347490285,1735873840331,-1000.0,9.762e-05,2]
[347490287,1735873840340,-1000.0,9.762e-05,2]
[347490289,1735873840349,-1000.0,9.762e-05,2]
[347490291,1735873840359,-1000.0,9.762e-05,2]
[347490293,1735873840368,-1000.0,9.762e-05,2]
[347490295,1735873840376,-1000.0,9.762e-05,2]
[347490297,1735873840385,-673.0,9.762e-05,2]
[347490299,1735873840394,-1000.0,9.762e-05,2]
[347490301,1735873840403,-1000.0,9.762e-05,2]
[347490303,1735873840412,-1000.0,9.762e-05,2]
[347490305,1735873840422,-1000.0,9.762e-05,2]
[347490307,1735873840431,-1000.0,9.762e-05,2]
[347490309,1735873840440,-1000.0,9.762e-05,2]
[347490311,1735873840449,-1000.0,9.762e-05,2]
[347490312,1735873840458,-1000.0,9.762e-05,2]
[347490314,1735873840467,-1000.0,9.762e-05,2]
[347490316,1735873840476,-500.0,9.762e-05,2]
[347490318,1735873840485,-500.0,9.762e-05,2]
[347490320,1735873840493,-774.6,9.762e-05,2]
[347490322,1735873840503,-500.0,9.762e-05,2]
[347490324,1735873840512,-500.0,9.762e-05,2]
[347490326,1735873840520,-841.08,9.762e-05,2]
[347490328,1735873840529,-610.45,9.762e-05,2]
[347490330,1735873840538,-1030.23,9.762e-05,2]
[347490332,1735873840547,-1768.63,9.762e-05,2]
[347490334,1735873840557,-500.0,9.762e-05,2]
[347490336,1735873840565,-985.06,9.762e-05,2]
[347490338,1735873840574,-500.0,9.762e-05,2]
[347490340,1735873840583,-500.0,9.762e-05,2]
[347490342,1735873840592,-500.0,9.762e-05,2]
[347490343,1735873840601,-500.0,9.762e-05,2]
[347490345,1735873840610,-500.0,9.762e-05,2]
[347490347,1735873840619,-500.0,9.762e-05,2]
[347490349,1735873840628,-1741.04,9.762e-05,2]
[347490351,1735873840637,-500.0,9.762e-05,2]
[347490353,1735873840646,-500.0,9.762e-05,2]
[347490355,1735873840654,-500.0,9.762e-05,2]
[347490357,1735873840663,-500.0,9.762e-05,2]
[347490359,1735873840672,-500.0,9.762e-05,2]
[347490361,1735873840681,-500.0,9.762e-05,2]
[347490363,1735873840690,-2646.26,9.762e-05,2]
[347490365,1735873840698,-856.71,9.762e-05,2]
[347490367,1735873840707,-500.0,9.762e-05,2]
[347490369,1735873840717,-500.0,9.762e-05,2]
[347490371,1735873840726,-500.0,9.762e-05,2]
[347490373,1735873840734,-500.0,9.762e-05,2]
[347490374,1735873840743,-500.0,9.762e-05,2]
[347490376,1735873840752,-297.45993122,9.762e-05,2]
[347490378,1735873840761,-500.0,9.762e-05,2]
[347490380,1735873840770,-500.0,9.762e-05,2]
[347490382,1735873840779,-866.0,9.762e-05,2]
[347490384,1735873840790,-546.48,9.762e-05,2]
[347490386,1735873840799,-500.0,9.762e-05,2]
[347490388,1735873840808,-500.0,9.762e-05,2]
[347490390,1735873840817,-868.95,9.762e-05,2]
[347490392,1735873840827,-500.0,9.762e-05,2]
[347490394,1735873840836,-1566.69,9.762e-05,2]
[347490396,1735873840846,-747.97,9.762e-05,2]
[347490398,1735873840855,-547.09,9.762e-05,2]
[347490400,1735873840864,-942.17,9.762e-05,2]
[347490402,1735873840873,-500.0,9.762e-05,2]
[347490404,1735873840882,-500.0,9.762e-05,2]
[347490406,1735873840891,-500.0,9.762e-05,2]
[347490408,1735873840900,-3878.2,9.762e-05,2]
[347490410,1735873840910,-5191.06,9.762e-05,2]
[347490412,1735873840919,-500.0,9.762e-05,2]
[347490414,1735873840928,-500.0,9.762e-05,2]
[347490416,1735873840938,-585.2,9.762e-05,2]
[347490418,1735873840947,-1277.01,9.762e-05,2]
[347490420,1735873840956,-847.96300797,9.762e-05,2]
[347490423,1735873840970,-368.79699203,9.762e-05,2]
[347490425,1735873840979,-130.84286308,9.762e-05,2]
[347490427,1735873840990,-369.15713692,9.762e-05,2]
[347490429,1735873840999,-500.0,9.762e-05,2]
[347490431,1735873841008,-493.23290308,9.762e-05,2]
[347490433,1735873841018,-2023.47709692,9.762e-05,2]
[347490435,1735873841028,-500.0,9.762e-05,2]
[347490437,1735873841039,-500.0,9.762e-05,2]
[347490439,1735873841049,-335.99349917,9.762e-05,2]
[347490441,1735873841060,-164.00650083,9.762e-05,2]
[347490443,1735873841069,-500.0,9.762e-05,2]
[347490445,1735873841078,-1253.68242552,9.762e-05,2]
[347490447,1735873841090,-237.50757448,9.762e-05,2]
[347490449,1735873841099,-1347.66,9.762e-05,2]
[347490451,1735873841108,-3182.88,9.762e-05,2]
[347490453,1735873841118,-500.0,9.762e-05,2]
[347490455,1735873841127,-500.0,9.762e-05,2]
[347490457,1735873841135,-240.22734552,9.762e-05,2]
[347490463,1735873841186,-259.77265448,9.762e-05,2]
[347490465,1735873841195,-500.0,9.762e-05,2]
[347490467,1735873841205,-512.80534542,9.762e-05,2]
[347490469,1735873841216,-41.44465458,9.762e-05,2]
[347490471,1735873841225,-458.55534542,9.762e-05,2]
[347490474,1735873841236,-481.27465458,9.762e-05,2]
[347490476,1735873841245,-372.77015603,9.762e-05,2]
[347490664,1735873843193,-429.26652671,9.662e-05,2]
[347490666,1735873843205,-1208.10939751,9.662e-05,2]
[347490668,1735873843216,-501.28527578,9.662e-05,2]
[347490670,1735873843226,-772.66471922,9.761e-05,2]
[347490696,1735873843480,-60.07528078,9.761e-05,2]
[347490698,1735873843491,-877.90070574,9.762e-05,2]
[347490700,1735873843504,-805.15913823,9.762e-05,2]
[347490702,1735873843515,-185.81743862,9.762e-05,2]
[347490704,1735873843529,-314.18256138,9.762e-05,2]
[347490706,1735873843541,-500.0,9.762e-05,2]
[347490708,1735873843551,-290.59258818,9.762e-05,2]
[347490710,1735873843563,-209.40741182,9.762e-05,2]
[347490712,1735873843572,-1037.92454171,9.762e-05,2]
[347490715,1735873843584,-61.83545829,9.762e-05,2]
[347490717,1735873843592,-500.0,9.762e-05,2]
[347490719,1735873843602,-269.17337571,9.762e-05,2]
[347490721,1735873843614,-230.82662429,9.762e-05,2]
[347490723,1735873843624,-542.64,9.762e-05,2]
[347490725,1735873843633,-500.0,9.762e-05,2]
[347490727,1735873843642,-4616.33,9.762e-05,2]
[347490729,1735873843652,-1747.02,9.762e-05,2]
[347490731,1735873843661,-500.0,9.762e-05,2]
[347490733,1735873843670,-500.0,9.762e-05,2]
[347490735,1735873843680,-500.0,9.762e-05,2]
[347490737,1735873843690,-500.0,9.762e-05,2]
[347490739,1735873843699,-500.0,9.762e-05,2]
[347490741,1735873843708,-500.0,9.762e-05,2]
[347490743,1735873843718,-1756.1,9.762e-05,2]
[347490745,1735873843729,-500.0,9.762e-05,2]
[347490747,1735873843738,-1874.517354,9.762e-05,2]
[347490749,1735873843747,-500.0,9.762e-05,2]
[347490751,1735873843757,-500.0,9.762e-05,2]
[347490753,1735873843766,-718.83,9.762e-05,2]
[347490755,1735873843775,-500.0,9.762e-05,2]
[347490757,1735873843785,-500.0,9.762e-05,2]
[347490759,1735873843795,-500.0,9.762e-05,2]
[347490761,1735873843805,-500.0,9.762e-05,2]
[347490763,1735873843814,-156.641603,9.762e-05,2]
[347490765,1735873843823,-1106.7,9.762e-05,2]
[347490767,1735873843832,-500.0,9.762e-05,2]
[347490769,1735873843841,-500.0,9.762e-05,2]
[347490771,1735873843850,-156.833203,9.762e-05,2]
[347490773,1735873843859,-1682.91,9.762e-05,2]
[347490775,1735873843869,-500.0,9.762e-05,2]
[347490777,1735873843880,-500.0,9.762e-05,2]
[347490779,1735873843889,-3471.38,9.762e-05,2]
[347490781,1735873843898,-500.0,9.762e-05,2]
[347490783,1735873843907,-500.0,9.762e-05,2]
[347490785,1735873843917,-500.0,9.762e-05,2]
[347490787,1735873843927,-500.0,9.762e-05,2]
[347490789,1735873843936,-500.0,9.762e-05,2]
[347490791,1735873843946,-500.0,9.762e-05,2]
[347490793,1735873843955,-519.05121571,9.762e-05,2]
[347490795,1735873843968,-2246.82878429,9.762e-05,2]
[347490797,1735873843978,-500.0,9.762e-05,2]
[347490799,1735873843987,-500.0,9.762e-05,2]
[347490801,1735873843996,-500.0,9.762e-05,2]
[347490803,1735873844005,-500.0,9.762e-05,2]
[347490805,1735873844014,-500.0,9.762e-05,2]
[347490807,1735873844024,-89.17121571,9.762e-05,2]
[347490810,1735873844035,-721.30878429,9.762e-05,2]
[347490812,1735873844044,-500.0,9.762e-05,2]
[347490814,1735873844054,-500.0,9.762e-05,2]
[347490816,1735873844064,-124.35927327,9.762e-05,2]
[347490818,1735873844076,-375.64072673,9.762e-05,2]
[347490820,1735873844085,-500.0,9.762e-05,2]
[347490822,1735873844095,-500.0,9.762e-05,2]
[347490824,1735873844105,-500.0,9.762e-05,2]
[347490826,1735873844115,-500.0,9.762e-05,2]
[347490828,1735873844124,-2292.524084,9.762e-05,2]
[347490830,1735873844133,-500.0,9.762e-05,2]
[347490832,1735873844146,-500.0,9.762e-05,2]
[347490834,1735873844155,-1052.44,9.762e-05,2]
[347490836,1735873844164,-589.90147668,9.762e-05,2]
[347490838,1735873844173,-760.1,9.762e-05,2]
[347490840,1735873844184,-500.0,9.762e-05,2]
[347490842,1735873844193,-500.0,9.762e-05,2]
[347490843,1735873844203,-500.0,9.762e-05,2]
[347490846,1735873844214,-602.69,9.762e-05,2]
[347490847,1735873844223,-500.0,9.762e-05,2]
[347490849,1735873844233,-799.2,9.762e-05,2]
[347490851,1735873844242,-1305.85,9.762e-05,2]
[347490853,1735873844252,-2924.31,9.762e-05,2]
[347490855,1735873844261,-500.0,9.762e-05,2]
[347490857,1735873844270,-981.49,9.762e-05,2]
[347490858,1735873844280,-500.0,9.762e-05,2]
[347490860,1735873844290,-500.0,9.762e-05,2]
[347490862,1735873844300,-500.0,9.762e-05,2]
[347490864,1735873844309,-500.0,9.762e-05,2]
[347490866,1735873844321,-500.0,9.762e-05,2]
[347490868,1735873844330,-502.61471287,9.762e-05,2]
[347490870,1735873844339,-1542.35,9.762e-05,2]
[347490872,1735873844348,-981.94,9.762e-05,2]
[347490874,1735873844358,-500.0,9.762e-05,2]
[347490876,1735873844367,-500.63258233,9.762e-05,2]
[347490878,1735873844376,-500.0,9.762e-05,2]
[347490880,1735873844385,-500.0,9.762e-05,2]
[347490881,1735873844394,-913.55,9.762e-05,2]
[347490883,1735873844403,-500.0,9.762e-05,2]
[347490885,1735873844413,-2931.61,9.762e-05,2]
[347490887,1735873844422,-500.0,9.762e-05,2]
[347490889,1735873844431,-500.0,9.762e-05,2]
[347490891,1735873844441,-500.0,9.762e-05,2]
[347490893,1735873844450,-532.79,9.762e-05,2]
[347490895,1735873844459,-500.0,9.762e-05,2]
[347490897,1735873844469,-500.0,9.762e-05,2]
[347490899,1735873844478,-698.11,9.762e-05,2]
[347490901,1735873844487,-500.0,9.762e-05,2]
[347490903,1735873844496,-500.0,9.762e-05,2]
[347490905,1735873844505,-500.0,9.762e-05,2]
[347490907,1735873844514,-500.0,9.762e-05,2]
[347490909,1735873844523,-500.0,9.762e-05,2]
[347490911,1735873844531,-697.53,9.762e-05,2]
[347490913,1735873844541,-500.0,9.762e-05,2]
[347490915,1735873844550,-500.0,9.762e-05,2]
[347490917,1735873844559,-500.0,9.762e-05,2]
[347490919,1735873844568,-500.0,9.762e-05,2]
[347490921,1735873844577,-500.0,9.762e-05,2]
[347490922,1735873844588,-500.0,9.762e-05,2]
[347490924,1735873844597,-500.0,9.762e-05,2]
[347490926,1735873844606,-500.0,9.762e-05,2]
[347490928,1735873844616,-500.0,9.762e-05,2]
[347490930,1735873844626,-500.0,9.762e-05,2]
[347490932,1735873844635,-500.0,9.762e-05,2]
[347490934,1735873844644,-500.0,9.762e-05,2]
[347490936,1735873844653,-539.94852548,9.762e-05,2]
[347490937,1735873844663,-884.1,9.762e-05,2]
[347490938,1735873844672,-500.0,9.762e-05,2]
[347490939,1735873844681,-500.0,9.762e-05,2]
[347490940,1735873844690,-500.0,9.762e-05,2]
[347490941,1735873844699,-658.07,9.762e-05,2]
[347490942,1735873844708,-500.0,9.762e-05,2]
[347490943,1735873844717,-556.87,9.762e-05,2]
[347490945,1735873844726,-500.0,9.762e-05,2]
[347490947,1735873844735,-500.0,9.762e-05,2]
[347490949,1735873844744,-500.0,9.762e-05,2]
[347490951,1735873844753,-500.0,9.762e-05,2]
[347490953,1735873844763,-635.73789191,9.762e-05,2]
[347490956,1735873844778,-1074.04210809,9.762e-05,2]
[347490957,1735873844788,-515.36,9.762e-05,2]
[347490959,1735873844797,-500.0,9.762e-05,2]
[347490961,1735873844806,-500.0,9.762e-05,2]
[347490963,1735873844817,-783.29,9.762e-05,2]
[347490966,1735873844828,-500.0,9.762e-05,2]
[347490968,1735873844839,-2858.85,9.762e-05,2]
[347490970,1735873844849,-500.0,9.762e-05,2]
[347490971,1735873844859,-500.0,9.762e-05,2]
[347490974,1735873844870,-500.0,9.762e-05,2]
[347490975,1735873844879,-1080.75,9.762e-05,2]
[347490978,1735873844889,-500.0,9.762e-05,2]
[347490979,1735873844898,-640.94,9.762e-05,2]
[347490982,1735873844908,-500.0,9.762e-05,2]
[347490983,1735873844917,-500.0,9.762e-05,2]
[347490985,1735873844927,-500.0,9.762e-05,2]
[347490987,1735873844936,-500.0,9.762e-05,2]
[347490989,1735873844950,-500.0,9.762e-05,2]
[347490991,1735873844959,-500.0,9.762e-05,2]
[347490994,1735873844969,-500.0,9.762e-05,2]
[347490995,1735873844978,-500.0,9.762e-05,2]
[347490997,1735873844988,-500.0,9.762e-05,2]
[347490999,1735873845000,-500.0,9.762e-05,2]
[347491002,1735873845009,-500.0,9.762e-05,2]
[347491004,1735873845019,-500.0,9.762e-05,2]
[347491006,1735873845029,-621.33,9.762e-05,2]
[347491008,1735873845040,-500.0,9.762e-05,2]
[347491010,1735873845049,-500.0,9.762e-05,2]
[347491012,1735873845058,-674.5,9.762e-05,2]
[347491014,1735873845067,-500.0,9.762e-05,2]
[347491016,1735873845077,-4361.51,9.762e-05,2]
[347491018,1735873845086,-500.0,9.762e-05,2]
[347491020,1735873845095,-500.0,9.762e-05,2]
[347491022,1735873845104,-1678.22,9.762e-05,2]
[347491024,1735873845113,-500.0,9.762e-05,2]
[347491026,1735873845122,-500.0,9.762e-05,2]
[347491028,1735873845131,-500.0,9.762e-05,2]
[347491030,1735873845142,-673.54,9.762e-05,2]
[347491032,1735873845152,-891.46,9.762e-05,2]
[347491033,1735873845161,-500.0,9.762e-05,2]
[347491035,1735873845171,-500.0,9.762e-05,2]
[347491037,1735873845180,-3851.22,9.762e-05,2]
[347491039,1735873845189,-3309.45,9.762e-05,2]
[347491041,1735873845199,-500.0,9.762e-05,2]
[347491043,1735873845208,-500.0,9.762e-05,2]
[347491045,1735873845217,-500.0,9.762e-05,2]
[347491048,1735873845226,-500.0,9.762e-05,2]
[347491050,1735873845235,-500.0,9.762e-05,2]
[347491051,1735873845245,-1242.18,9.762e-05,2]
[347491053,1735873845254,-500.0,9.762e-05,2]
[347491055,1735873845263,-919.39,9.762e-05,2]
[347491058,1735873845272,-500.0,9.762e-05,2]
[347491059,1735873845281,-500.0,9.762e-05,2]
[347491061,1735873845291,-500.0,9.762e-05,2]
[347491063,1735873845301,-500.0,9.762e-05,2]
[347491066,1735873845310,-5973.98,9.762e-05,2]
[347491068,1735873845320,-683.17,9.762e-05,2]
[347491070,1735873845329,-500.0,9.762e-05,2]
[347491072,1735873845338,-7930.53,9.762e-05,2]
[347491074,1735873845348,-500.0,9.762e-05,2]
[347491076,1735873845357,-1313.94,9.762e-05,2]
[347491078,1735873845366,-740.24,9.762e-05,2]
[347491080,1735873845375,-1733.19,9.762e-05,2]
[347491082,1735873845383,-500.0,9.762e-05,2]
[347491084,1735873845393,-500.0,9.762e-05,2]
[347491086,1735873845402,-500.0,9.762e-05,2]
[347491088,1735873845411,-500.0,9.762e-05,2]
[347491090,1735873845420,-500.0,9.762e-05,2]
[347491092,1735873845429,-500.0,9.762e-05,2]
[347491094,1735873845439,-1353.73,9.762e-05,2]
[347491096,1735873845449,-870.03,9.762e-05,2]
[347491098,1735873845458,-1265.53,9.762e-05,2]
[347491100,1735873845467,-500.0,9.762e-05,2]
[347491102,1735873845476,-500.0,9.762e-05,2]
[347491104,1735873845485,-711.95,9.762e-05,2]
[347491105,1735873845494,-500.0,9.762e-05,2]
[347491107,1735873845503,-1998.32,9.762e-05,2]
[347491110,1735873845512,-829.5,9.762e-05,2]
[347491112,1735873845521,-3887.52,9.762e-05,2]
[347491114,1735873845531,-500.0,9.762e-05,2]
[347491116,1735873845542,-500.0,9.762e-05,2]
[347491118,1735873845551,-500.0,9.762e-05,2]
[347491120,1735873845561,-500.0,9.762e-05,2]
[347491122,1735873845570,-500.0,9.762e-05,2]
[347491124,1735873845579,-9215.52,9.762e-05,2]
[347491126,1735873845590,-500.0,9.762e-05,2]
[347491128,1735873845599,-500.0,9.762e-05,2]
[347491130,1735873845608,-500.0,9.762e-05,2]
[347491132,1735873845617,-500.0,9.762e-05,2]
[347491134,1735873845627,-500.0,9.762e-05,2]
[347491136,1735873845636,-1977.48,9.762e-05,2]
[347491138,1735873845645,-500.0,9.762e-05,2]
[347491140,1735873845655,-500.0,9.762e-05,2]
[347491142,1735873845664,-500.0,9.762e-05,2]
[347491144,1735873845673,-522.66,9.762e-05,2]
[347491146,1735873845682,-500.0,9.762e-05,2]
[347491148,1735873845691,-2904.69,9.762e-05,2]
[347491150,1735873845700,-500.0,9.762e-05,2]
[347491152,1735873845709,-500.0,9.762e-05,2]
[347491153,1735873845719,-500.0,9.762e-05,2]
[347491155,1735873845728,-500.0,9.762e-05,2]
[347491157,1735873845737,-500.0,9.762e-05,2]
[347491159,1735873845747,-500.0,9.762e-05,2]
[347491161,1735873845756,-500.0,9.762e-05,2]
[347491163,1735873845765,-500.0,9.762e-05,2]
[347491165,1735873845774,-500.0,9.762e-05,2]
[347491167,1735873845783,-1116.6,9.762e-05,2]
[347491169,1735873845794,-5620.31,9.762e-05,2]
[347491171,1735873845803,-500.0,9.762e-05,2]
[347491173,1735873845815,-500.0,9.762e-05,2]
[347491175,1735873845824,-500.0,9.762e-05,2]
[347491177,1735873845834,-500.0,9.762e-05,2]
[347491179,1735873845843,-500.0,9.762e-05,2]
[347491181,1735873845851,-1849.23,9.762e-05,2]